[Event "Czech Championship 2022"]
[Site "Usti nad Labem"]
[Date "2022.05.16"]
[Round "3.24"]
[White "Bokhnak, Timofey"]
[Black "Pokrupa, Marek"]
[Result "1-0"]
[ECO "B07"]
[WhiteElo "2060"]
[BlackElo "2117"]
[Annotator "TA"]
[PlyCount "115"]
[EventDate "2022.05.12"]
[EventType "swiss"]
[EventCountry "CZE"]
[SourceTitle "playchess.com"]
[Source "ChessBase"]
[SourceQuality "1"]
[TimeControl "40/5400+30:1800+30"]

{[%evp 11,115,19,37,31,56,54,79,66,85,66,63,66,64,57,53,45,116,112,140,105,313,104,113,99,102,114,119,102,108,114,110,25,33,27,27,34,39,9,37,27,49,43,83,73,95,95,177,57,201,199,193,188,209,204,212,175,175,190,209,157,165,168,185,191,297,322,343,346,320,301,348,278,354,329,330,313,703,709,702,702,798,766,946,833,879,782,2711,2010,2650,2301,1647,6206,6412,1356,1165,0,6412,6381,6206,6083,5850,4128,29962,29962,6794,6555]} 1. e4 {[%emt 0:00:05]} d6 {[%emt 0:00:08]} 2. d4 {[%emt 0:00:24]} Nf6 {[%emt 0:00:11]} 3. Bd3 {[%emt 0:01:27]} e5 {[%emt 0:01:07]} 4. Ne2 {[%emt 0:02:14]} Nc6 {[%emt 0:06:24]} 5. c3 {[%emt 0:00:07]} d5 {[%emt 0:05:37]} 6. exd5 {[%emt 0:07:27]} Qxd5 {[%emt 0:09:05]} 7. O-O {[%emt 0:00:55] [#] B07: Pirc Defence: Miscellaneous Systems.} Qd6 $146 {[%emt 0:11:26]} ({Predecessor:} 7... exd4 8. Re1 Be7 9. cxd4 O-O 10. Nbc3 Qd8 11. a3 Bg4 12. Qc2 Re8 13. Be3 Bd6 14. h3 Bh5 {1-0 (96) Nakamura,H (2741)-Movsesian,S (2721) Moscow 2010}) 8. Na3 {[%emt 0:05:48] Threatens to win with Nc4.} exd4 {[%emt 0:03:02]} 9. Nb5 {[%emt 0:01:34] White is better.} Qd8 {[%emt 0:00:20]} (9... Qe5 $2 10. Bf4 Qe7 11. Nxc7+ Kd8 12. Nxa8 $18) 10. Nexd4 {[%emt 0:09:54]} Nxd4 {[%emt 0:00:42]} 11. Nxd4 {[%emt 0:00:06]} Be7 {[%emt 0:00:41]} 12. Bg5 {[%emt 0:02:56]} O-O {[%emt 0:02:49]} 13. Re1 {[%emt 0:02:43]} Re8 {[%emt 0:12:13]} ({Black should try} 13... h6 $14 14. Bh4 Bd6) 14. Bc4 $16 {[%emt 0:17:20]} h6 {[%emt 0:09:00]} 15. Bh4 {[%emt 0:00:27]} Nd5 $2 {[%emt 0:19:58] [#]} (15... c6 $16) 16. Bxd5 $2 {[%emt 0:19:28]} (16. Rxe7 $1 $18 {[%mdl 512] is more deadly.} Rxe7 17. Bxd5 Qxd5 18. Bxe7) 16... Bxh4 {[%emt 0:01:42]} 17. Qh5 {[%emt 0:00:35]} (17. Bxf7+ Kxf7 18. Qh5+ g6 19. Qxh6 Rh8 $17) 17... Rf8 {[%emt 0:01:35]} 18. Nf3 $1 {[%emt 0:02:04] 0x0.001a2c23c0acdp-1022s more active pieces. The black rooks are badly placed.} Bg5 {[%emt 0:03:16]} 19. Rad1 {[%emt 0:05:16][%cal Od5f7] Bxf7+! is the strong threat.} Qf6 {[%emt 0:00:39] White must now prevent ...g6.} 20. Nxg5 {[%emt 0:02:22]} hxg5 {[%emt 0:00:42]} 21. Qf3 {[%emt 0:04:19]} (21. Be4 g6 22. Qf3 Qxf3 23. Bxf3 Be6 $11) (21. h4 $16 gxh4 22. Rd4 (22. Be4 g6 $11)) 21... c6 {[%emt 0:01:27]} 22. Qxf6 {[%emt 0:00:35]} gxf6 {[%emt 0:00:02]} 23. Bb3 $36 {[%emt 0:00:12][%cal Of2f4][%mdl 2048] White is more active.} a5 {[%emt 0:01:42]} 24. a3 {[%emt 0:00:54]} a4 {[%emt 0:02:23]} 25. Ba2 {[%emt 0:00:03][%cal Of2f4]} Ra5 {[%emt 0:00:22]} 26. Rd4 {[%emt 0:04:35]} (26. f4 $5) 26... c5 {[%emt 0:00:49]} 27. Rd6 {[%emt 0:00:22]} Rb5 {[%emt 0:02:18]} 28. Re2 {[%emt 0:01:00]} (28. Rxf6 $6 Rxb2 29. Bc4 Kg7 $11) 28... Kg7 {[%emt 0:00:05]} (28... Be6 $16 {was called for.}) 29. f3 {[%emt 0:00:42]} (29. Bc4 $18 Ra5 30. Rb6) 29... Bf5 {[%emt 0:00:54]} ({Better is} 29... Be6 $1 $14 30. Bxe6 fxe6) 30. Bc4 $18 {[%emt 0:01:59]} Ra5 {[%emt 0:00:19]} 31. Rb6 {[%emt 0:00:24] Prevents b5.} Raa8 {[%emt 0:03:12]} 32. Rxb7 {[%emt 0:01:07]} Rab8 {[%emt 0:00:01]} 33. Ree7 {[%emt 0:00:27]} Rxb7 {[%emt 0:00:33]} 34. Rxb7 {[%emt 0:00:07][%mdl 4096] Endgame KRB-KRB} Bg6 {[%emt 0:00:12]} 35. Bd5 {[%emt 0:01:04]} Rd8 {[%emt 0:01:45] [#]} 36. c4 {[%emt 0:00:03]} Re8 {[%emt 0:00:04] [#]} 37. Kf2 $1 {[%emt 0:00:03] Against Re2+} f5 {[%emt 0:00:02]} (37... Bd3 $142 38. f4 (38. Rxf7+ Kg6 $18) (38. Bxf7 Re2+ 39. Kg3 f5 $16) 38... Kh6) 38. Bc6 {[%emt 0:01:25][%csl LRa4,LRe8]} Rd8 {[%emt 0:00:44]} 39. Rd7 {[%emt 0:00:05] Inhibits Rd2+.} (39. Bxa4 Rd2+ 40. Kg1 Rd4 $16) 39... Rh8 {[%emt 0:00:44]} 40. h3 {[%emt 0:01:13]} Rb8 {[%emt 0:00:05]} 41. Bb5 {[%emt 0:30:05]} ({Weaker is} 41. Bxa4 Rxb2+ 42. Kg1 Ra2 $14) 41... Kf6 {[%emt 0:31:40]} 42. Rd6+ {[%emt 0:00:22]} ({Not} 42. Bxa4 Rxb2+ 43. Kg3 f4+ 44. Kh2 Ra2 $11) 42... Ke7 {[%emt 0:00:11]} 43. Rd5 {[%emt 0:00:14]} Rd8 $2 {[%emt 0:00:00]} (43... f6 44. Rxc5 f4 45. Rc7+ Ke6) 44. Rxd8 {[%emt 0:00:00]} Kxd8 {[%emt 0:00:00]} 45. Bxa4 {[%emt 0:00:00] KB-KB} f4 {[%emt 0:00:00]} 46. Bc6 {[%emt 0:00:00]} Bd3 {[%emt 0:00:00]} 47. Bd5 {[%emt 0:00:00]} f6 {[%emt 0:00:00]} 48. g3 {[%emt 0:00:00]} fxg3+ {[%emt 0:00:00]} 49. Kxg3 {[%emt 0:00:00]} Kc7 {[%emt 0:00:00]} 50. b4 {[%emt 0:00:00]} Kd6 {[%emt 0:00:00]} 51. f4 {[%emt 0:00:00]} Be2 {[%emt 0:00:00]} 52. Kf2 {[%emt 0:00:00]} (52. h4 $142 gxh4+ 53. Kxh4) 52... Bd3 {[%emt 0:00:00]} 53. Kg3 {[%emt 0:00:00]} (53. fxg5 $142 cxb4 54. axb4 fxg5 55. Ke3) 53... Be2 $1 {[%emt 0:00:00]} 54. h4 {[%emt 0:00:00]} gxh4+ {[%emt 0:00:00]} 55. Kxh4 {[%emt 0:00:00]} Bd1 {[%emt 0:00:00]} 56. Kg3 {[%emt 0:00:00]} Ba4 {[%emt 0:00:00]} 57. Kg4 {[%emt 0:00:00]} Bc2 {[%emt 0:00:00]} 58. Kh5 {[%emt 0:00:00] Weighted Error Value: White=0.20 (precise) /Black=0.39} 1-0